bitfinex-derivatives/quotes_SOLF0:USTF0_20220110
["timestamp","ask_amount","ask_price","bid_price","bid_amount"]
[1641802472933,3.97765339,142.28,142.23,0.79544892]
[1641802473634,3.97765339,142.28,142.24,2.40756827]
[1641802474234,3.97765339,142.28,142.25,0.79544892]
[1641802474434,3.97765339,142.28,142.25,8.90844892]
[1641802475036,3.97765339,142.28,142.26,0.79544892]
[1641802476736,27.66479,142.29,142.26,0.79544892]
[1641802477336,3.97761719,142.28,142.26,0.79544892]
[1641802477736,3.97761719,142.28,142.23,0.79544892]
[1641802479137,3.97761719,142.28,142.24,2.40582689]
[1641802479837,3.97761719,142.28,142.25,0.79544892]
[1641802481240,3.97761719,142.28,142.23,0.79544892]
[1641802481439,13.35761719,142.28,142.23,0.79544892]
[1641802482138,3.97761719,142.27,142.23,0.79544892]
[1641802483039,3.97761719,142.28,142.23,0.79544892]
[1641802483539,3.97761719,142.28,142.22,0.79544892]
[1641802483739,10.47261719,142.28,142.22,0.79544892]
[1641802484542,3.97761719,142.27,142.22,0.79544892]
[1641802485442,3.97761719,142.28,142.22,0.79544892]
[1641802487145,3.97761719,142.28,142.22,7.44644892]
[1641802487545,3.97761719,142.28,142.23,0.79544892]
[1641802487746,3.97761719,142.28,142.23,4.9538439]
[1641802488547,3.97761719,142.28,142.24,0.79544892]
[1641802489347,3.97761719,142.28,142.23,0.79544892]
[1641802491448,3.97761719,142.28,142.24,2.40561655]
[1641802491950,3.97761719,142.28,142.25,0.79544892]
[1641802492849,27.66479,142.29,142.25,0.79544892]
[1641802493248,27.66479,142.29,142.23,2.55144892]
[1641802493448,27.66479,142.29,142.26,2.40878283]
[1641802493648,27.66479,142.29,142.26,8.18078283]
[1641802494150,27.66479,142.29,142.27,2.40878283]
[1641802494349,27.66479,142.29,142.27,3.20423175]
[1641802494849,27.66479,142.29,142.28,0.79544892]
[1641802495249,31.64233231,142.29,142.24,0.79544892]
[1641802495650,31.64233231,142.29,142.28,2.41432535]
[1641802495850,27.66479,142.29,142.28,10.70232535]
[1641802496151,31.64229695,142.29,142.28,11.49777427]
[1641802497152,31.64229695,142.29,142.28,9.08344892]
[1641802497951,31.64229695,142.29,142.28,11.49975204]
[1641802498654,31.64229695,142.29,142.28,9.08344892]
[1641802500256,31.64229695,142.29,142.28,0.79544892]
[1641802500956,31.64229695,142.29,142.23,0.79544892]
[1641802501458,31.64229695,142.29,142.23,25.3661718]
[1641802501459,3.97750695,142.28,142.23,25.3661718]
[1641802501659,11.05450695,142.28,142.23,25.3661718]
[1641802501859,11.05450695,142.28,142.23,15.61385779]
[1641802502060,11.05450695,142.28,142.24,3.21252342]
[1641802502760,3.97750695,142.27,142.25,2.4170745]
[1641802502961,3.97750695,142.27,142.25,3.21252342]
[1641802503260,3.97750695,142.27,142.26,0.79544892]
[1641802503661,3.97750695,142.28,142.26,8.55644892]
[1641802504061,3.97750695,142.28,142.27,0.79544892]
[1641802504462,3.97750695,142.28,142.22,50.26330887]
[1641802504964,3.97750695,142.28,142.23,3.21252282]
[1641802505363,3.97750695,142.28,142.24,0.79567106]
[1641802505563,3.97750695,142.28,142.24,3.21252282]
[1641802505766,3.97750695,142.28,142.24,10.61652282]
[1641802506363,3.97750695,142.28,142.25,2.41685176]
[1641802506563,3.97750695,142.28,142.25,3.21252282]
[1641802506968,3.97750695,142.28,142.26,0.79567106]
[1641802507470,3.97750695,142.28,142.23,0.79567106]
[1641802508269,3.97750695,142.28,142.24,2.4169815]
[1641802508970,3.97750695,142.28,142.25,0.79567106]
[1641802509369,3.97750695,142.28,142.24,0.79567106]
[1641802510570,3.97750695,142.28,142.22,0.79567106]
[1641802511069,3.97750695,142.28,142.23,2.41626954]
[1641802511671,3.97750695,142.28,142.24,0.79567106]
[1641802513272,27.66479,142.25,142.21,0.79567106]
[1641802513673,3.97750695,142.24,142.21,0.79567106]
[1641802514174,3.97750695,142.24,142.2,0.79567106]
[1641802514374,3.97750695,142.24,142.22,2.41585043]
[1641802515176,3.97750695,142.24,142.23,0.79567106]
[1641802516075,3.97750695,142.24,142.22,0.79567106]
[1641802516476,3.97750695,142.24,142.19,0.79567106]
[1641802517578,3.97750695,142.24,142.2,2.4142338]
[1641802518181,3.97750695,142.24,142.21,0.79567106]
[1641802519984,3.97750695,142.24,142.2,0.79567106]
[1641802520489,3.97750695,142.24,142.22,0.79567106]
[1641802520683,3.97750695,142.24,142.22,8.88967106]
[1641802520882,3.97750695,142.24,142.22,8.094]
[1641802521283,3.97750695,142.27,142.23,0.79567106]
[1641802521484,3.97750695,142.27,142.23,3.20891647]
[1641802522085,3.97750695,142.27,142.24,0.79567106]
[1641802524184,3.97750695,142.27,142.23,0.79567106]
[1641802525283,3.97750695,142.27,142.24,2.41412741]
[1641802525883,3.97750695,142.27,142.25,0.79567106]
[1641802526084,3.97750695,142.27,142.25,7.72067106]
[1641802526884,3.97750695,142.27,142.26,0.79567106]
[1641802527486,14.81840887,142.33,142.26,0.79567106]
[1641802527687,13.22731566,142.36,142.32,7.02197879]
[1641802527888,13.22731566,142.36,142.32,14.09897879]
[1641802528086,13.22731566,142.36,142.33,1.756]
[1641802528289,0.00731566,142.36,142.33,1.756]
[1641802528486,7.02197879,142.48,142.33,1.756]
[1641802528687,3.9755075,142.39,142.34,1.07207684]
[1641802529288,54.50902802,142.45,142.34,1.07207684]
[1641802529488,27.66479,142.44,142.36,27.66479]
[1641802529688,47.14081802,142.44,142.36,34.45879]
[1641802529889,47.14081802,142.44,142.36,6.794]
[1641802530089,7.02518529,142.42,142.36,6.794]
[1641802530690,7.02518529,142.42,142.27,35.4907]
[1641802530691,19.47602802,142.41,142.27,35.4907]
[1641802530892,19.47602802,142.41,142.27,33.7367]
[1641802531088,19.47602802,142.41,142.28,1.07367921]
[1641802531290,19.47602802,142.41,142.29,1.756]
[1641802531489,19.47602802,142.41,142.31,27.66479]
[1641802531490,27.66479,142.39,142.31,27.66479]
[1641802531689,27.66479,142.39,142.32,35.3597]
[1641802532090,3.9755075,142.38,142.32,36.43337921]
[1641802532291,3.9755075,142.38,142.32,43.21537921]
[1641802532691,3.9755075,142.38,142.33,1.07367921]
[1641802533495,3.9755075,142.38,142.35,27.66479]
[1641802533692,19.47606813,142.41,142.35,8.497]
[1641802534392,5.61807758,142.4,142.35,8.497]
[1641802534791,8.14488267,142.4,142.31,27.66479]
[1641802534990,5.61895539,142.38,142.31,27.66479]
[1641802535391,3.9755075,142.37,142.32,1.07404739]
[1641802536193,9.59506293,142.37,142.32,1.07404739]
[1641802536593,3.9755075,142.36,142.29,27.66479]
[1641802536992,3.9755075,142.36,142.3,1.07445243]
[1641802537995,9.59519659,142.36,142.3,1.07445243]
[1641802538796,3.9755075,142.35,142.3,1.07445243]
[1641802541000,3.9755075,142.36,142.3,1.07445243]
[1641802541200,3.9755075,142.36,142.3,6.88245243]
[1641802541798,3.9755075,142.36,142.31,1.07445243]
[1641802549106,5.6200702,142.35,142.31,1.07445243]
[1641802549310,12.2700702,142.35,142.31,1.07445243]
[1641802549710,3.9755075,142.34,142.3,1.07445243]
[1641802549911,31.6402975,142.34,142.3,1.07445243]
[1641802550510,5.62126813,142.32,142.3,1.07445243]
[1641802550711,13.58826813,142.32,142.3,1.07445243]
[1641802550914,3.9755075,142.31,142.28,1.07445243]
[1641802551814,3.9755075,142.31,142.25,1.07445243]
[1641802552013,5.62223238,142.3,142.25,1.07445243]
[1641802552618,3.9755075,142.29,142.25,1.07445243]
[1641802552917,11.5405075,142.29,142.25,1.07445243]
[1641802553519,6.74432806,142.35,142.25,1.07445243]
[1641802553520,3.9755075,142.28,142.25,1.07445243]
[1641802553819,6.74432806,142.35,142.25,2.83045243]
[1641802554021,6.74432806,142.35,142.27,27.66479]
[1641802554218,35.9335,142.37,142.27,29.42079]
[1641802555020,2.53359302,142.36,142.28,2.41481964]
[1641802555220,6.51139504,142.36,142.28,11.22719112]
[1641802555521,6.51139504,142.36,142.29,1.90937148]
[1641802555722,3.97780202,142.35,142.29,1.90937148]
[1641802556121,6.51139504,142.35,142.29,1.90937148]
[1641802556524,3.97780202,142.35,142.29,3.66537148]
[1641802556724,3.97780202,142.34,142.3,2.41543052]
[1641802556922,3.97780202,142.34,142.3,40.47133052]
[1641802557323,3.97780202,142.37,142.31,1.90937148]
[1641802557524,3.97780202,142.37,142.31,10.37537148]
[1641802557725,3.97780202,142.33,142.31,10.37537148]
[1641802558225,3.97780202,142.37,142.32,1.90937148]
[1641802558525,34.4075482,142.38,142.32,1.90937148]
[1641802559028,5.61928183,142.37,142.3,27.66479]
[1641802559526,5.61928183,142.37,142.31,1.07445802]
[1641802559827,2.53631472,142.36,142.31,1.07445802]
[1641802561028,2.53631472,142.36,142.31,2.83045802]
[1641802561228,2.53631472,142.37,142.31,2.83045802]
[1641802561532,2.53631472,142.37,142.31,8.68345802]
[1641802561729,2.53631472,142.37,142.32,1.07445802]
[1641802562329,2.53631472,142.37,142.3,27.66479]
[1641802562530,8.92631472,142.37,142.3,27.66479]
[1641802562730,23.78420333,142.37,142.31,1.51176624]
[1641802562930,5.61990812,142.36,142.31,1.51176624]
[1641802563330,6.74444255,142.34,142.31,1.51176624]
[1641802563630,5.62103594,142.33,142.25,14.85788861]
[1641802564032,27.66479,142.31,142.25,14.85788861]
[1641802564231,33.28582594,142.33,142.26,1.91022448]
[1641802564831,2.53631472,142.32,142.26,1.91022448]
[1641802565433,2.53631472,142.32,142.25,1.91022448]
[1641802566434,2.53631472,142.32,142.24,1.91022448]
[1641802567033,2.53631472,142.32,142.26,2.41875479]
[1641802567239,14.85788861,142.34,142.27,1.756]
[1641802567435,8.861e-05,142.34,142.27,8.78069179]
[1641802567635,8.861e-05,142.34,142.29,5.62208574]
[1641802567836,10.06888595,142.4,142.3,1.756]
[1641802568035,10.06888595,142.4,142.3,29.42079]
[1641802568036,27.66479,142.39,142.3,29.42079]
[1641802568235,27.66479,142.39,142.3,29.57501448]
[1641802568535,27.66479,142.39,142.31,1.91022448]
[1641802569539,33.28330098,142.39,142.31,1.91022448]
[1641802569741,27.66479,142.39,142.31,8.98022448]
[1641802570539,27.66479,142.39,142.32,1.91022448]
[1641802571541,37.73228727,142.39,142.32,1.91022448]
[1641802572340,37.73228727,142.39,142.31,9.48122448]
[1641802572741,37.73228727,142.39,142.33,1.91022448]
[1641802573244,37.73228727,142.39,142.32,1.91022448]
[1641802573841,15.10453327,142.38,142.31,1.91022448]
[1641802575041,3.97750164,142.38,142.31,3.66622448]
[1641802575643,3.97750164,142.39,142.32,1.91022448]
[1641802575845,3.97750164,142.39,142.32,10.54222448]
[1641802576045,15.10292229,142.42,142.35,27.66479]
[1641802576245,15.10292229,142.42,142.35,34.50079]
[1641802580955,15.10292229,142.42,142.36,1.90809373]
[1641802582256,15.10292229,142.42,142.39,27.66479]
[1641802582456,3.97750164,142.42,142.39,36.41079]
[1641802582757,3.97750164,142.43,142.39,36.41079]
[1641802583255,34.68750849,142.47,142.39,36.41079]
[1641802583256,15.10145803,142.45,142.39,36.41079]
[1641802583655,15.10145803,142.46,142.4,1.90707705]
[1641802583857,15.10145803,142.46,142.41,1.754]
[1641802584057,15.10145803,142.46,142.43,27.66479]
[1641802584258,3.97750164,142.46,142.43,36.46979]
[1641802584958,15.09883699,142.5,142.43,36.46979]
[1641802585360,25.12985243,142.5,142.43,36.46979]
[1641802585857,15.09883699,142.49,142.43,36.46979]
[1641802586058,15.09883699,142.49,142.43,64.13458]
[1641802587360,15.09883699,142.49,142.43,36.46979]
[1641802587560,15.09883699,142.5,142.43,36.46979]
[1641802587760,20.71313013,142.5,142.43,36.46979]
[1641802588061,27.66479,142.49,142.43,36.46979]
[1641802588259,15.09883699,142.5,142.43,36.46979]
[1641802588463,15.09883699,142.49,142.43,36.46979]
[1641802589060,15.09883699,142.5,142.44,1.90606851]
[1641802589460,15.09883699,142.51,142.44,1.90606851]
[1641802589862,15.09883699,142.52,142.44,1.90606851]
[1641802590961,15.09883699,142.52,142.45,1.754]
[1641802591363,15.09883699,142.52,142.46,1.90606851]
[1641802591662,15.09883699,142.52,142.46,9.01806851]
[1641802591862,15.09883699,142.52,142.46,7.112]
[1641802593562,3.97750164,142.52,142.47,3.65921951]
[1641802594063,15.0960192,142.54,142.47,1.754]
[1641802594264,15.0960192,142.54,142.5,27.66479]
[1641802594464,15.0960192,142.54,142.5,33.90279]
[1641802594870,15.0960192,142.55,142.5,33.90279]
[1641802596767,15.0960192,142.57,142.5,33.90279]
[1641802599271,15.0960192,142.58,142.51,1.90420085]
[1641802599972,15.0960192,142.58,142.52,7.01237685]
[1641802600174,15.0960192,142.58,142.56,27.66479]
[1641802600375,3.97750164,142.59,142.56,35.12479]
[1641802600773,15.09174979,142.6,142.56,35.12479]
[1641802601973,3.97750164,142.6,142.56,35.12479]
[1641802602174,15.09174979,142.63,142.59,27.66479]
[1641802602374,15.09174979,142.63,142.59,34.92179]
[1641802602574,14.75091869,142.64,142.59,34.92179]
[1641802602876,11.11417651,142.63,142.59,34.92179]
[1641802603778,11.11417651,142.64,142.59,34.92179]
[1641802604178,11.11417651,142.64,142.59,7.257]
[1641802604179,27.66479,142.62,142.59,7.257]
[1641802604377,27.66479,142.62,142.53,27.66479]
[1641802604779,11.11417651,142.61,142.53,27.66479]
[1641802607683,2.51371086,142.6,142.53,27.66479]
[1641802607981,11.11417651,142.59,142.53,27.66479]
[1641802608381,11.11417651,142.61,142.53,27.66479]
[1641802608582,5.61059239,142.59,142.51,29.41679]
[1641802608782,5.61059239,142.59,142.51,27.66479]
[1641802608982,5.61059239,142.59,142.46,42.1475]
[1641802609282,17.26730613,142.58,142.46,42.1475]
[1641802609484,28.38148264,142.58,142.47,1.9049522]
[1641802609782,11.11417651,142.57,142.47,1.9049522]
[1641802610182,27.66479,142.55,142.47,29.5697422]
[1641802610784,11.11417651,142.54,142.48,1.9049522]
[1641802614389,11.11417651,142.56,142.48,1.9049522]
[1641802614888,2.52290417,142.55,142.48,1.9049522]
[1641802615388,11.11417651,142.54,142.48,1.9049522]
[1641802616189,2.52290417,142.55,142.48,1.9049522]
[1641802616389,14.75091869,142.56,142.48,1.9049522]
[1641802616589,83.91280869,142.57,142.48,1.9049522]
[1641802617090,11.11728738,142.56,142.48,1.9049522]
[1641802617491,15.09022984,142.56,142.48,1.9049522]
[1641802617691,32.36722638,142.56,142.48,1.9049522]
[1641802618091,32.36722638,142.56,142.49,5.61413908]
[1641802618292,29.84114853,142.56,142.5,1.754]
[1641802618492,3.97294246,142.55,142.5,3.6589522]
[1641802618792,3.97294246,142.55,142.5,1.754]
[1641802619092,29.84034542,142.57,142.5,1.754]
[1641802619291,29.84034542,142.57,142.5,41.5359]
[1641802619491,3.97294246,142.54,142.5,41.5359]
[1641802619691,3.97294246,142.54,142.49,14.69913908]
[1641802619893,17.61878346,142.56,142.49,9.085]
[1641802620294,15.08952013,142.55,142.49,9.085]
[1641802620493,15.08952013,142.55,142.51,27.66479]
[1641802620893,17.61878346,142.55,142.51,27.66479]
[1641802621297,6.50220579,142.55,142.52,1.90387469]
[1641802621497,3.97294246,142.54,142.52,7.91487469]
[1641802621997,3.97294246,142.55,142.52,6.011]
[1641802622401,3.97294246,142.57,142.52,6.011]
[1641802622798,3.97294246,142.57,142.54,27.66479]
[1641802623200,2.53209748,142.56,142.54,27.66479]
[1641802623801,3.97294246,142.55,142.54,27.66479]
[1641802624001,4.246e-05,142.55,142.54,27.66479]
[1641802624200,4.246e-05,142.56,142.54,27.66479]
[1641802624400,4.246e-05,142.56,142.55,1.752]
[1641802624600,2.53209748,142.57,142.55,9.063]
[1641802624799,2.53209748,142.57,142.55,36.72779]
[1641802625002,14.75091869,142.59,142.55,36.72779]
[1641802625402,3.97141286,142.58,142.55,36.72779]
[1641802626703,2.53209748,142.57,142.55,34.97579]
[1641802627203,3.97141286,142.56,142.55,34.97579]
[1641802628405,3.97141286,142.58,142.55,34.97579]
[1641802629507,2.53222562,142.57,142.55,34.97579]
[1641802630110,3.97141286,142.56,142.55,34.97579]
[1641802630809,1.286e-05,142.56,142.55,34.97579]
[1641802631411,14.75091869,142.6,142.55,34.97579]
[1641802631810,39.49284039,142.63,142.55,40.58765788]
[1641802632110,0.83354039,142.63,142.59,7.00819959]
[1641802632314,3.96972115,142.62,142.61,5.60947521]
[1641802632511,15.01616408,142.64,142.62,1.752]
[1641802632712,15.01616408,142.64,142.62,9.766]
[1641802632909,3.96957073,142.63,142.62,9.766]
[1641802633313,3.96957073,142.66,142.62,13.39414574]
[1641802633514,3.96957073,142.66,142.63,1.752]
[1641802633710,3.96957073,142.65,142.63,5.38014574]
[1641802633910,3.96957073,142.65,142.63,3.62814574]
[1641802634110,3.96957073,142.65,142.62,9.766]
[1641802634111,59.18099456,142.74,142.64,3.62814574]
[1641802634311,59.18099456,142.74,142.65,1.752]
[1641802634511,59.18099456,142.74,142.65,8.477]
[1641802634711,7.00819959,142.76,142.65,8.477]
[1641802634912,7.00819959,142.76,142.69,27.66479]
[1641802635710,7.00819959,142.76,142.68,9.323]
[1641802636111,5.60445363,142.75,142.63,1.75]
[1641802636312,5.60445363,142.75,142.6,1.752]
[1641802636612,7.0106562,142.71,142.57,1.752]
[1641802636912,27.66479,142.69,142.62,27.66479]
[1641802640516,27.66479,142.69,142.6,27.66479]
[1641802641518,36.72879,142.69,142.6,27.66479]
[1641802641717,12.6202556,142.67,142.59,1.752]
[1641802641918,12.6202556,142.67,142.58,27.66479]
[1641802642820,27.66479,142.65,142.58,27.66479]
[1641802643918,27.66479,142.65,142.59,3.97022561]
[1641802644119,27.66479,142.65,142.59,12.03022561]
[1641802644919,27.66479,142.65,142.6,3.97022561]
[1641802645320,27.66479,142.65,142.58,27.66479]
[1641802645621,27.66479,142.65,142.54,29.41679]
[1641802645819,27.66479,142.65,142.54,27.66479]
[1641802646221,27.66479,142.65,142.55,3.97119131]
[1641802646921,27.66479,142.62,142.55,3.97119131]
[1641802647723,33.27441319,142.62,142.55,3.97119131]
[1641802648125,33.27441319,142.62,142.49,1.752]
[1641802648322,32.808,142.61,142.48,1.752]
[1641802648523,32.808,142.61,142.5,3.97204589]
[1641802648723,32.808,142.61,142.5,11.09304589]
[1641802648923,27.66479,142.57,142.5,7.121]
[1641802649424,1.5337331,142.56,142.51,3.97204589]
[1641802650324,1.5337331,142.56,142.5,3.97204589]
[1641802650726,1.5337331,142.6,142.5,3.97204589]
[1641802650926,1.5337331,142.6,142.5,10.43404589]
[1641802651229,27.66479,142.59,142.5,10.43404589]
[1641802651429,1.5337331,142.55,142.5,10.43404589]
[1641802651829,1.5337331,142.58,142.51,3.97204589]
[1641802661241,1.5337331,142.58,142.51,9.58554846]
[1641802661438,1.5337331,142.58,142.54,5.61237223]
[1641802661638,3.31e-05,142.58,142.57,55.32958]
[1641802661838,39.42485475,142.64,142.58,1.752]
[1641802662438,14.77683715,142.65,142.58,1.752]
[1641802663138,1.22548294,142.64,142.59,3.96992711]
[1641802663540,1.22548294,142.64,142.62,27.66479]
[1641802663739,1.22548294,142.64,142.62,36.76679]
[1641802663939,1.22548294,142.64,142.62,9.102]
[1641802664142,1.22548294,142.65,142.62,9.102]
[1641802664941,1.22548294,142.66,142.62,9.102]
[1641802665141,1.22548294,142.66,142.57,70.32839]
[1641802665342,1.22548294,142.66,142.57,68.57639]
[1641802665742,1.22548294,142.66,142.58,3.97006034]
[1641802667043,16.00232009,142.66,142.58,3.97006034]
[1641802667443,1.22548294,142.65,142.58,3.97006034]
[1641802667844,16.00232009,142.65,142.58,3.97006034]
[1641802668043,1.22548294,142.64,142.58,3.97006034]
[1641802668645,1.22548294,142.63,142.58,3.97006034]
[1641802668943,1.22548294,142.62,142.58,3.97006034]
[1641802669343,1.22548294,142.61,142.58,3.97006034]
[1641802669847,1.22548294,142.6,142.58,3.97006034]
[1641802670246,1.22548294,142.59,142.56,27.66479]
[1641802670647,1.22548294,142.58,142.56,27.66479]
[1641802671046,1.22548294,142.57,142.56,27.66479]
[1641802671647,1.22548294,142.57,142.56,31.63599533]
[1641802673450,1.22548294,142.57,142.56,3.97120533]
[1641802674051,1.22548294,142.57,142.53,31.63599533]
[1641802674651,1.22548294,142.56,142.54,3.97120533]
[1641802675052,1.22548294,142.55,142.54,3.97120533]
[1641802678558,1.22548294,142.55,142.52,3.97120533]
[1641802679158,1.22548294,142.54,142.52,3.97120533]
[1641802679860,1.22548294,142.53,142.52,3.97120533]
[1641802681563,8.22148294,142.53,142.52,3.97120533]
[1641802681765,8.22148294,142.53,142.52,5.33e-06]
[1641802681964,8.22148294,142.53,142.46,21.79216564]
[1641802682365,6.996,142.53,142.46,21.79216564]
[1641802682565,6.996,142.53,142.46,7.01532849]
[1641802682765,6.996,142.53,142.45,27.66479]
[1641802682965,12.60910859,142.53,142.45,27.66479]
[1641802683164,12.60910859,142.53,142.43,16.53083715]
[1641802683365,5.61384118,142.51,142.46,6.38912454]
[1641802683765,1.86856728,142.5,142.42,14.77683715]
[1641802683966,27.66479,142.49,142.42,14.77683715]
[1641802684167,27.66479,142.49,142.41,34.8798]
[1641802684567,27.66479,142.49,142.4,42.44162715]
[1641802685067,3.06106692,142.48,142.4,27.66479]
[1641802688571,3.06106692,142.48,142.41,1.754]
[1641802688771,3.06106692,142.48,142.41,9.575]
[1641802688972,3.06106692,142.5,142.41,9.575]
[1641802689475,3.06106692,142.49,142.41,9.575]
[1641802689872,3.06106692,142.48,142.41,9.575]
[1641802690375,3.06106692,142.47,142.41,1.754]
[1641802690574,3.06106692,142.47,142.4,27.66479]
[1641802690775,3.06106692,142.46,142.4,27.66479]
[1641802691274,5.61422918,142.5,142.4,27.66479]
[1641802691677,8.67546369,142.49,142.4,27.66479]
[1641802692080,5.61555369,142.47,142.36,5.61942061]
[1641802692276,5.6163353,142.45,142.36,27.66479]
[1641802692477,13.6433353,142.45,142.36,27.66479]
[1641802692676,3.06074597,142.44,142.36,27.66479]
[1641802699081,3.06074597,142.44,142.37,3.97436548]
[1641802699281,3.06074597,142.44,142.37,11.30536548]
[1641802699887,3.06074597,142.44,142.38,3.97436548]
[1641802700481,8.67714806,142.44,142.38,3.97436548]
[1641802701285,3.06074597,142.43,142.38,3.97436548]
[1641802703389,3.06074597,142.45,142.38,5.72836548]
[1641802703789,37.77514597,142.47,142.39,3.97436548]
[1641802704292,3.06074597,142.46,142.39,3.97436548]
[1641802704490,3.06074597,142.46,142.4,27.66479]
[1641802705191,3.06074597,142.46,142.41,3.97436548]
[1641802705993,3.06074597,142.46,142.38,3.97436548]
[1641802706593,30.72553597,142.46,142.39,27.66479]
[1641802707395,30.72553597,142.46,142.38,3.97436548]
[1641802707698,8.67711439,142.45,142.4,3.97436548]
[1641802707896,8.67711439,142.45,142.39,3.97436548]
[1641802708394,3.06074597,142.44,142.37,3.97436548]
[1641802708596,27.66479,142.43,142.37,3.97436548]
[1641802709196,3.06074597,142.42,142.37,3.97436548]
[1641802709596,5.61791699,142.41,142.37,3.97436548]
[1641802710195,3.06074597,142.4,142.35,3.97436548]
[1641802710397,3.06074597,142.4,142.35,28.50663089]
[1641802710598,30.72553597,142.4,142.35,28.50663089]
[1641802711097,27.66479,142.4,142.36,3.97436548]
[1641802711896,33.28306005,142.4,142.36,3.97436548]
[1641802712496,3.45936404,142.39,142.36,3.97436548]
[1641802712696,11.40536404,142.39,142.36,3.97436548]
[1641802712898,11.40536404,142.39,142.34,3.97436548]
[1641802713497,3.45936404,142.38,142.34,3.97436548]
[1641802713797,3.45936404,142.38,142.32,3.97436548]
[1641802714796,3.45936404,142.39,142.32,3.97436548]
[1641802714997,3.45936404,142.39,142.32,34.40579754]
[1641802715498,3.45936404,142.39,142.33,3.97436548]
[1641802716698,3.45936404,142.39,142.34,27.66479]
[1641802717398,3.45936404,142.41,142.35,3.97436548]
[1641802717599,3.45936404,142.41,142.35,12.49536548]
[1641802718398,3.45936404,142.41,142.36,3.97436548]
[1641802718599,9.07699213,142.41,142.36,3.97436548]
[1641802719200,3.45936404,142.4,142.36,3.97436548]
[1641802724804,31.12415404,142.4,142.36,3.97436548]
[1641802725406,3.45936404,142.4,142.36,3.97436548]
[1641802725605,34.8559,142.42,142.35,3.97436548]
[1641802725806,34.8559,142.42,142.35,12.47336548]
[1641802726005,3.4588014,142.41,142.35,12.47336548]
[1641802726506,3.4588014,142.41,142.36,3.97436548]
[1641802726708,3.4588014,142.41,142.37,27.66479]
[1641802727311,3.4588014,142.41,142.38,3.97436548]
[1641802729914,3.4588014,142.41,142.35,3.97436548]
[1641802731014,3.4588014,142.41,142.36,2.41968774]
[1641802731714,3.4588014,142.41,142.37,3.97436548]
[1641802733015,3.4588014,142.41,142.35,3.97436548]
[1641802733814,3.4588014,142.41,142.36,2.42129043]
[1641802734314,3.4588014,142.41,142.37,3.97436548]
[1641802736018,3.4588014,142.41,142.35,3.97436548]
[1641802736919,3.4588014,142.41,142.36,2.42337938]
[1641802737319,3.4588014,142.41,142.37,3.97436548]
[1641802739020,9.07665404,142.41,142.37,3.97436548]
[1641802739221,9.07665404,142.41,142.35,3.97436548]
[1641802739723,3.4588014,142.4,142.38,3.97436548]
[1641802739924,5.99450729,142.4,142.38,3.97436548]
[1641802740122,5.99450729,142.4,142.36,6.40064463]
[1641802740523,3.4588014,142.39,142.37,3.97436548]
[1641802740724,3.4588014,142.39,142.37,6.40064463]
[1641802741324,3.4588014,142.39,142.38,3.97436548]
[1641802741526,3.4588014,142.4,142.38,3.97436548]
[1641802741924,3.4588014,142.4,142.35,3.97436548]
[1641802742123,9.3598014,142.4,142.35,3.97436548]
[1641802742325,9.3598014,142.4,142.39,3.97436548]
[1641802742724,11.89582609,142.4,142.35,3.97436548]
[1641802743123,11.89582609,142.4,142.39,3.97436548]
[1641802743325,9.3598014,142.4,142.39,3.97436548]
[1641802743525,9.3598014,142.4,142.36,2.42695279]
[1641802743926,3.4588014,142.39,142.37,3.97436548]
[1641802744927,3.4588014,142.4,142.38,2.42695279]
[1641802745126,34.8559,142.42,142.38,9.45195279]
[1641802745324,14.77683715,142.43,142.38,9.45195279]
[1641802745725,3.45887857,142.41,142.39,3.97436548]
[1641802746124,3.45887857,142.42,142.39,3.97436548]
[1641802746927,2.53642615,142.41,142.39,10.13936548]
[1641802747327,2.53642615,142.41,142.4,3.97436548]
[1641802747534,14.77683715,142.43,142.4,6.40110418]
[1641802747730,14.77683715,142.45,142.4,6.40110418]
[1641802748132,3.4580401,142.44,142.41,3.97436548]
[1641802748531,3.4580401,142.44,142.41,6.40110418]
[1641802748731,3.4580401,142.44,142.41,34.06589418]
[1641802749230,3.4580401,142.44,142.42,3.97436548]
[1641802749732,3.4580401,142.47,142.42,3.97436548]
[1641802750834,2.53174753,142.46,142.42,3.97436548]
[1641802751133,3.4580401,142.45,142.42,3.97436548]
[1641802751537,12.1940401,142.45,142.42,3.97436548]
[1641802751735,12.1940401,142.45,142.38,14.77683715]
[1641802751935,12.64164894,142.43,142.38,14.77683715]
[1641802752536,27.41848609,142.43,142.35,2.42300969]
[1641802752937,27.66479,142.4,142.36,3.69629224]
[1641802753134,35.76179,142.4,142.36,3.69629224]
[1641802753334,3.97517229,142.39,142.36,3.69629224]
[1641802753835,3.97517229,142.38,142.36,3.69629224]
[1641802754335,35.76179,142.4,142.36,3.69629224]
[1641802754736,3.45915941,142.39,142.35,3.69629224]